{"text_format":"1","workbook":"xlsx","n_sheets":5,"sheets":["Dataset","Delete Leading Numbers","Remove Trailing Numbers","Extract All Numbers","Separate Only Numbers"],"not_rendered":{"charts":0,"images":0,"macros":1,"external_links":0,"defined_names":0,"comments":0,"pivot_tables":0},"unopened":[],"bounds":{"document_bytes":16777216,"sheet_cells":100000,"rows_first":2000,"rows_last":500,"rows_between":2000,"halvings":0,"cell_chars":16384,"cell_head_chars":4096},"cells_cut":0,"cells_raw":0,"read":"whole","date_system":"1900"}

{"sheet":"Dataset","index":0,"n_rows":9,"n_cols":2,"rows_kept":9,"cut":false,"hidden":false,"merged":[]}
[]
[null,"Dataset"]
[]
[null,"Old Data"]
[null,"12John12 Cena12"]
[null,"43Roman 34Reigns34"]
[null,"56Seth56 Rollins556"]
[null,"87Dean7887 Ambrose78"]
[null,"909Finn 090Balor909"]

{"sheet":"Delete Leading Numbers","index":1,"n_rows":9,"n_cols":10,"rows_kept":9,"cut":false,"hidden":false,"merged":[[1,1,1,2],[1,8,1,9]]}
[]
[null,"Deleting Leading Numbers",null,null,null,null,null,null,"Try Yourself"]
[]
[null,"Old Data","Updated Data",null,null,null,null,null,"Old Data","Updated Data"]
[null,"12John12 Cena12",{"$f":"Delete_Lead_Num(B5)","v":"John12 Cena12"},null,null,null,null,null,"12John12 Cena12"]
[null,"43Roman 34Reigns34",{"$f":"Delete_Lead_Num(B6)","v":"Roman 34Reigns34"},null,null,null,null,null,"43Roman 34Reigns34"]
[null,"56Seth56 Rollins556",{"$f":"Delete_Lead_Num(B7)","v":"Seth56 Rollins556"},null,null,null,null,null,"56Seth56 Rollins556"]
[null,"87Dean7887 Ambrose78",{"$f":"Delete_Lead_Num(B8)","v":"Dean7887 Ambrose78"},null,null,null,null,null,"87Dean7887 Ambrose78"]
[null,"909Finn 090Balor909",{"$f":"Delete_Lead_Num(B9)","v":"Finn 090Balor909"},null,null,null,null,null,"909Finn 090Balor909"]

{"sheet":"Remove Trailing Numbers","index":2,"n_rows":9,"n_cols":10,"rows_kept":9,"cut":false,"hidden":false,"merged":[[1,1,1,2],[1,8,1,9]]}
[]
[null,"Removing Trailing Numbers",null,null,null,null,null,null,"Try Yourself"]
[]
[null,"Old Data","Updated Data",null,null,null,null,null,"Old Data","Updated Data"]
[null,"12John12 Cena12",{"$f":"Remove_Trail_Number(B5)","v":"12John12 Cena"},null,null,null,null,null,"12John12 Cena12"]
[null,"43Roman 34Reigns34",{"$f":"Remove_Trail_Number(B6)","v":"43Roman 34Reigns"},null,null,null,null,null,"43Roman 34Reigns34"]
[null,"56Seth56 Rollins556",{"$f":"Remove_Trail_Number(B7)","v":"56Seth56 Rollins"},null,null,null,null,null,"56Seth56 Rollins556"]
[null,"87Dean7887 Ambrose78",{"$f":"Remove_Trail_Number(B8)","v":"87Dean7887 Ambrose"},null,null,null,null,null,"87Dean7887 Ambrose78"]
[null,"909Finn 090Balor909",{"$f":"Remove_Trail_Number(B9)","v":"909Finn 090Balor"},null,null,null,null,null,"909Finn 090Balor909"]

{"sheet":"Extract All Numbers","index":3,"n_rows":9,"n_cols":10,"rows_kept":9,"cut":false,"hidden":false,"merged":[[1,1,1,2],[1,8,1,9]]}
[]
[null,"Extracting All Numbers",null,null,null,null,null,null,"Try Yourself"]
[]
[null,"Old Data","Updated Data",null,null,null,null,null,"Old Data","Updated Data"]
[null,"12John12 Cena12",{"$f":"Remove_Number(B5)","v":"John Cena"},null,null,null,null,null,"12John12 Cena12"]
[null,"43Roman 34Reigns34",{"$f":"Remove_Number(B6)","v":"Roman Reigns"},null,null,null,null,null,"43Roman 34Reigns34"]
[null,"56Seth56 Rollins556",{"$f":"Remove_Number(B7)","v":"Seth Rollins"},null,null,null,null,null,"56Seth56 Rollins556"]
[null,"87Dean7887 Ambrose78",{"$f":"Remove_Number(B8)","v":"Dean Ambrose"},null,null,null,null,null,"87Dean7887 Ambrose78"]
[null,"909Finn 090Balor909",{"$f":"Remove_Number(B9)","v":"Finn Balor"},null,null,null,null,null,"909Finn 090Balor909"]

{"sheet":"Separate Only Numbers","index":4,"n_rows":9,"n_cols":10,"rows_kept":9,"cut":false,"hidden":false,"merged":[[1,1,1,2],[1,8,1,9]]}
[]
[null,"Separating Only Numbers",null,null,null,null,null,null,"Try Yourself"]
[]
[null,"Data","Marks",null,null,null,null,null,"Data","Marks"]
[null,"John got 80 in test",{"$f":"Separate_Num(B5)","v":"80"},null,null,null,null,null,"John got 80 in test"]
[null,"Roman got 70 in test",{"$f":"Separate_Num(B6)","v":"70"},null,null,null,null,null,"Roman got 70 in test"]
[null,"Seth got 25 in test",{"$f":"Separate_Num(B7)","v":"25"},null,null,null,null,null,"Seth got 25 in test"]
[null,"Dean got 18 in test",{"$f":"Separate_Num(B8)","v":"18"},null,null,null,null,null,"Dean got 18 in test"]
[null,"Finn got 100 in test",{"$f":"Separate_Num(B9)","v":"100"},null,null,null,null,null,"Finn got 100 in test"]